Cogmind - Beta 16 @@@ ROGUE MODE // 2025.12.03 @ 01:55:17 Player: AngelSpirit Result: Destroyed by Autobeam Turret with Autobeam Performance ------------- Evolutions (0) 0 Regions Visited (2) 400 Robots Destroyed (17) 85 Value Destroyed (440) 440 Prototype IDs (14) 280 Alien Tech Used (0) 0 Bonus (0) 0 TOTAL SCORE: 1205 Bonus ------- None Cogmind --------- Core Integrity 0/250 Matter 295/300 Energy 125/125 System Corruption 0% Temperature Cool (12) Movement Treading (250) Ox1 Location -10/Subcaves Parts ------- > --- POWER (1) -------- Light Ion Engine > --- PROPULSION (2) --- Light Treads Spiked Treads > --- UTILITY (2) ------ High-capacity Storage Unit Makeshift Light Armor Plating > --- WEAPON (2) ------- Subdweller Machine Gun Subdweller Shrapnel Launcher > --- INVENTORY (20) --- Wheel Flightbrick High-capacity Matter Pod (32) Seismic Detector Subdweller Beam Cannon Subdweller Machine Gun Battle Cannon Grenade Launcher Shrapnel Trap Piercing Trap Piercing Trap Piercing Trap Peak State ------------ > --- POWER ------------ Light Ion Engine > --- PROPULSION ------- Light Treads Spiked Treads > --- UTILITY ---------- High-capacity Storage Unit Makeshift Light Armor Plating > --- WEAPON ----------- Subdweller Machine Gun Battle Cannon > --- INVENTORY -------- Wheel Flightbrick High-capacity Matter Pod Seismic Detector Subdweller Beam Cannon Subdweller Machine Gun Grenade Launcher Subdweller Shrapnel Launcher Shrapnel Trap Piercing Trap Piercing Trap Piercing Trap [Rating: 18] Favorites ----------- Power Light Ion Engine Engine Light Ion Engine Power Core Light Nuclear Core Propulsion Light Treads Treads Light Treads Utility High-capacity Storage Unit Device Seismic Detector Storage High-capacity Storage Unit Protection Light Armor Plating Weapon Subdweller Machine Gun Energy Gun EM Pulse Gun Ballistic Gun Subdweller Machine Gun Ballistic Cannon Battle Cannon Launcher Grenade Launcher Build | -11 -10 -10 ------- Run | Yrd Mat Sub Slots Evolved . | . . . Power . | . . . Propulsion . | . . . Utility . | . . . Weapon . | . . . Parts Attached 23 | 6 6 11 Power 3 | 1 1 1 Engine 2 | 1 . 1 Core 1 | . 1 . Reactor . | . . . Propulsion 4 | 2 . 2 Treads 4 | 2 . 2 Leg . | . . . Wheel . | . . . Hover . | . . . Flight . | . . . Utility 9 | 1 4 4 Device 1 | . . 1 Storage 3 | 1 2 . Processor . | . . . Hackware . | . . . Protection 5 | . 2 3 Artifact . | . . . Weapon 7 | 2 1 4 Energy Gun 2 | 1 . 1 Energy Cannon . | . . . Ballistic Gun 2 | 1 . 1 Ballistic Cannon 1 | . . 1 Launcher 2 | . 1 1 Special Weapon . | . . . Impact Weapon . | . . . Slashing Weapon . | . . . Piercing Weapon . | . . . Special Melee Weapon . | . . . Unidentified Prototypes . | . . . Parts Lost 1 | . . 1 Power 1 | . . 1 Propulsion . | . . . Utility . | . . . Weapon . | . . . Highest Loss Streak 1 | . . 1 To Critical Strikes . | . . . Average Backups 9 | . 5 10 Power . | . 1 . Propulsion 1 | . . 1 Utility 3 | . 2 4 Weapon 3 | . 1 4 Tool/Special . | . . . Unused Backups 10 | . 1 9 Power . | . . . Propulsion 2 | . . 2 Utility 3 | . . 3 Weapon 5 | . 1 4 Tool/Special . | . . . Average Slot Usage (%) 99 | . 99 99 Engine 8 | . 3 10 Core 5 | . 10 3 Treads 28 | . 28 28 Device 8 | . . 11 Storage 14 | . 14 14 Protection 5 | . 13 3 Energy Gun 6 | . 14 3 Ballistic Gun 13 | . 13 14 Ballistic Cannon 7 | . . 9 Peak Build Rating 18 | 6 9 18 Average Rating 11 | 4 8 12 On Entrance 5 | . 6 9 Avg Prop Armor Cover (%) . | . . . Naked Turns . | . . . Heaviest Build 59 | 12 52 59 Greatest Support 40 | 40 40 40 Greatest Overweight (x) 1 | . 1 1 Average Overweight (x) . | . . 1 Largest Inventory Capacity 20 | 8 20 20 Average Capacity 17 | 7 12 20 Most Carried 20 | 1 8 20 Average Carried 11 | . 5 13 Final Capacity 20 | 8 20 20 Final Carried 15 | 1 8 15 Class Distribution -------------------- 90% | Mutant 9% | Derelict-Mutant Dominant Class ---------------- Mutant | -10/Materials Mutant | -10/Subcaves Resources | -11 -10 -10 ----------- Run | Yrd Mat Sub Matter Collected 1119 | 181 429 509 Remotely . | . . . Salvage Created 490 | . 287 203 Parts 32 | . 23 9 Haulers Intercepted 1 | . 1 . Recyclers Shooed . | . . . Parts Field Recycled . | . . . Retrieved Matter . | . . . Parts Self-Destructed 5 | . . 5 Prevented . | . . . Parts Restored . | . . . Kills | -11 -10 -10 ------- Run | Yrd Mat Sub Combat Hostiles Destroyed 15 | . 9 6 Guns 10 | . 6 4 Cannons 2 | . . 2 AOE 3 | . 3 . Classes Destroyed 5 | . 4 1 Hauler 1 | . 1 . Watcher 1 | . 1 . Swarmer 6 | . 6 . Grunt 4 | . 3 1 Subdweller 5 | . . 5 Best Kill Streak 7 | . 7 1 Combat Bots Only 6 | . 6 1 Max Kills in Single Turn 2 | . 2 1 Gunslinging . | . . . Exploded 2 | . 2 . Melee . | . . . Uniques/NPCs Destroyed . | . . . Combat | -11 -10 -10 -------- Run | Yrd Mat Sub Hostile Shots Fired 67 | . 33 34 Missed 11 | . 8 3 Hits 56 | . 25 31 Projectile 56 | . 25 31 Critical Strikes 1 | . . 1 Damage Taken 887 | . 278 609 Core 250 | . 108 142 Absorbed by Shields . | . . . Ignored by Resistances 43 | . . 43 Core Remaining (%) 100 | 100 . . Volleys Fired 78 | . 22 56 Largest 2 | . 2 2 Hottest 90 | . 70 90 Shots Fired 144 | . 44 100 Gun 97 | . 42 55 Cannon 41 | . . 41 Launcher 6 | . 2 4 Special . | . . . Kinetic 106 | . 20 86 Thermal 8 | . . 8 Explosive 6 | . 2 4 Electromagnetic 24 | . 22 2 Robot Hit Streak 18 | . 6 18 Robot Miss Streak 3 | . 3 1 Penetration Max . | . . . Secondary Targets . | . . . Shots Hit Robots 64 | . 32 32 Core Hits 25 | . 16 9 Critical Kills . | . . . Critical Parts Destroyed . | . . . Critical Strikes 2 | . . 2 Destroy 1 | . . 1 Corrupt 1 | . . 1 Melee Attacks . | . . . Impact . | . . . Slashing . | . . . Piercing . | . . . Sneak Attacks . | . . . Combat Hostiles . | . . . Follow-up Attacks . | . . . Damage Inflicted 1276 | . 624 652 Guns 799 | . 373 426 Cannons 226 | . . 226 Explosions 251 | . 251 . Melee . | . . . Ramming . | . . . Kinetic 772 | . 193 579 Thermal 132 | . 70 62 Explosive 181 | . 181 . Electromagnetic 191 | . 180 11 Impact . | . . . Slashing . | . . . Piercing . | . . . Highest Corruption . | . . . Average Corruption . | . . . Corruption Purged . | . . . Corruption Blocked . | . . . Overload Shots . | . . . Overflow Damage . | . . . Projectiles . | . . . Explosions . | . . . Melee . | . . . Knockbacks 3 | . . 3 Impact . | . . . Kinetic 3 | . . 3 Secondary . | . . . Self-Inflicted Damage 85 | . 63 22 Shots 3 | . 2 1 Rammed . | . . . Targets Rammed . | . . . Kicked . | . . . Crushed . | . . . Highest Temperature 132 | . 132 . Average Temperature 38 | . 38 . Received Heat Transfer 204 | . 39 165 Siege Activations . | . . . Martial Activations . | . . . Shielding Activations . | . . . Robots Disrupted . | . . . Combat Hostiles . | . . . Robots Corrupted . | . . . Combat Hostiles . | . . . Parts Fried . | . . . Impact Corruptions . | . . . Robots Melted . | . . . Combat Hostiles . | . . . Parts Melted . | . . . Heat Transferred 175 | . 100 75 Parts Sabotaged . | . . . Parts Stolen . | . . . Parts Stripped . | . . . Power Chain Reactions 2 | . 2 . Alert | -11 -10 -10 ------- Run | Yrd Mat Sub Maximum Alert Level . | . . . Low Security (%) 100 | 100 100 . Level 1 . | . . . Level 2 . | . . . Level 3 . | . . . Level 4 . | . . . Level 5 . | . . . High Security . | . . . Max Security . | . . . Peak Influence 185 | . 185 . Initial . | . . . Average 32 | . 34 . Influence Increases 355 | . 325 30 Destroy 0b10 Robot/C 200 | . 180 20 Destroy 0b10 Robot/NC 10 | . 10 . Destroy Leader 44 | . 34 10 Successful Hack 47 | . 47 . Destroy Structure 24 | . 24 . Lose Combat Pursuer 30 | . 30 . Influence Decreases 355 | . 325 30 Time Decay 205 | . 175 30 Purge Threat 150 | . 150 . Squads Dispatched . | . . . Investigation . | . . . Extermination . | . . . Reinforcement . | . . . Assault . | . . . Garrison . | . . . Intercept . | . . . Searches Triggered . | . . . Construction Impeded . | . . . Haulers Reinforced . | . . . Active Scanning Responses . | . . . Cargo Convoy Interrupts . | . . . Stealth | -11 -10 -10 --------- Run | Yrd Mat Sub Distress Signals 2 | . 2 . Communications Jammed . | . . . Distress Signals . | . . . Times Spotted 23 | . 17 6 Peak Tracking Total 8 | . 8 1 Tactical Retreats 2 | . 2 . Traps | -11 -10 -10 ------- Run | Yrd Mat Sub Traps Triggered . | . . . Indirectly . | . . . Trap Hack Attempts . | . . . Triggered . | . . . Disarmed . | . . . Reprogrammed 4 | . 4 . Reused . | . . . Traps Extracted . | . . . Installed . | . . . Triggered . | . . . Most Traps Carried 4 | . . 4 Machines | -11 -10 -10 ---------- Run | Yrd Mat Sub Machines Disabled 1 | . . 1 Max in Single Turn 1 | . . 1 Machines Repaired . | . . . Machines Dismantled . | . . . Machines Sabotaged . | . . . Overloaded Fab Kills . | . . . Hacking | -11 -10 -10 --------- Run | Yrd Mat Sub Machines Accessed 12 | . 10 2 Terminals 8 | . 8 . Fabricators . | . . . Repair Stations . | . . . Recycling Units 2 | . 2 . Scanalyzers . | . . . Garrison Access . | . . . Total Hacks 42 | . 36 6 Successful 28 | . 22 6 Failed 13 | . 13 . Catastrophic 4 | . 4 . Database Lockouts 1 | . 1 . Manual 13 | . 13 . Terminals 33 | . 33 . Fabricators . | . . . Repair Stations . | . . . Recycling Units 3 | . 3 . Scanalyzers . | . . . Garrison Access . | . . . Terminal Hacks 21 | . 15 6 Record 5 | . . 5 Robot Analysis 1 | . 1 . Prototype ID Bank 1 | . 1 . Branch Access Points 1 | . 1 . Emergency Access Points 1 | . 1 . Unreport Threat 1 | . 1 . Locate Traps 4 | . 4 . Reprogram Traps 1 | . 1 . Surveillance Status 1 | . 1 . Transport Status 1 | . 1 . Hauler Manifests 1 | . 1 . Registered Components 1 | . 1 . Zone Layout 1 | . 1 . Proto ID Catalog 1 | . . 1 Fabricator Hacks . | . . . Repair Station Hacks . | . . . Recycling Unit Hacks 3 | . 3 . Report Inventory 2 | . 2 . Retrieve Components 1 | . 1 . Scanalyzer . | . . . Garrison Access Hacks . | . . . Unauthorized Hacks 4 | . 4 . Terminals 4 | . 4 . Track 1 | . 1 . Botnet 3 | . 3 . Fabricators . | . . . Repair Stations . | . . . Recycling Units . | . . . Scanalyzers . | . . . Garrison Access . | . . . Data Cores Recovered . | . . . Used . | . . . Hacking Detections 7 | . 7 . Full Trace Events . | . . . Feedback Events . | . . . Feedback Blocked . | . . . Robot Schematics Acquired . | . . . Robots Built . | . . . Authchips . | . . . Time . | . . . Total Robot Build Rating . | . . . Part Schematics Acquired . | . . . Parts Built . | . . . Authchips . | . . . Time . | . . . Total Part Build Rating . | . . . Part Studies Acquired . | . . . Parts Repaired . | . . . Time . | . . . Parts Recycled . | . . . Recycled Matter . | . . . Retrieved Matter . | . . . Retrieved Components 9 | . 9 . Parts Scanalyzed . | . . . Part Schematics Acquired . | . . . Parts Damaged . | . . . Bothacking | -11 -10 -10 ------------ Run | Yrd Mat Sub Used RIF Installer . | . . . Robots Hacked . | . . . Non-combat . | . . . Combat . | . . . Robot Hacks Applied . | . . . Relay Couplers Released . | . . . Fabnet Peak Effective % . | . . . Robots Rewired . | . . . Allies Hacked . | . . . Hacks Repelled . | . . . Allies | -11 -10 -10 -------- Run | Yrd Mat Sub Total Allies . | . . . Largest Group . | . . . Highest-Rated Group . | . . . Highest-Rated Ally . | . . . Total Orders . | . . . Ally Attacks . | . . . Total Damage . | . . . Kills . | . . . Allies Corrupted . | . . . Allies Melted . | . . . Intel | -11 -10 -10 ------- Run | Yrd Mat Sub Active Infowar (turns) 2088 | . . 2088 Seismic 2088 | . . 2088 Robot Analysis Total 1 | . 1 . Derelict Logs Recovered 1 | . . 1 Drone Launches . | . . . Drone Recoveries . | . . . Exploration | -11 -10 -10 ------------- Run | Yrd Mat Sub Turns Passed 3652 | 60 938 2654 Spaces Moved 1485 | 34 478 973 Core 3 | 3 . . Treads 1482 | 31 478 973 Legs . | . . . Wheels . | . . . Hover . | . . . Flight . | . . . Fastest Speed 50 | 50 160 240 Average Speed 222 | 150 177 247 Slowest Speed 250 | 160 240 250 Overloaded Moves . | . . . Propulsion Burnouts . | . . . Robots Hopped . | . . . Potential Cave-ins . | . . . Cave-ins Triggered . | . . . Exploration Rate (%) 54 | 5 98 60 Regions Visited 2 Branch Regions 1 Pre-discovered Areas . | . . . Known Exits Taken . | . . . Unknown Exits Taken 2 | 1 1 . Scrap Searched 8 | . . 8 Spaces Dug . | . . . Terrain Destroyed 33 | . 21 12 Melee . | . . . Projectile 1 | . . 1 AOE 32 | . 21 11 Terrain Rammed . | . . . Walls Destroyed . | . . . Machines Disabled . | . . . Actions | -11 -10 -10 --------- Run | Yrd Mat Sub Total 1679 | 40 522 1117 Wait 45 | . 3 42 Move 1483 | 33 477 973 Hop . | . . . Pick Up 26 | 1 8 17 Fast Attach 11 | 6 3 2 Attach 2 | . . 2 Detach . | . . . Swap 15 | . 4 11 Drop 19 | . 5 14 Fire 78 | . 22 56 Melee . | . . . Ram . | . . . Kick . | . . . Crush . | . . . Escape Stasis . | . . . Rewire . | . . . Trap . | . . . Miscellaneous . | . . . Route ------- -11/Scrapyard -10/Materials (discovered 6 exits: [*Mat x3] / *Min x2 / *Sub) -10/Subcaves (discovered 3 exits: [*Mat x2] / Rec) History --------- Turn | Location | Event 34 | -11/Scrapyard | Discovered new exit (range 15) 61 | -11/Scrapyard | Entered Materials 314 | -10/Materials | Discovered new exit (range 10) 318 | -10/Materials | Build established: Mutant 484 | -10/Materials | Discovered new exit (range 7) 551 | -10/Materials | Discovered new exit (range 16) 553 | -10/Materials | Identified exit to Mines 678 | -10/Materials | Central database locked down 837 | -10/Materials | Discovered new exit (range 16) 987 | -10/Materials | Discovered new exit (range 6) 999 | -10/Materials | Entered Subcaves 1049 | -10/Subcaves | A swath of the cavern ceiling suddenly collapsed 1334 | -10/Subcaves | Discovered new exit (range 7) 1407 | -10/Subcaves | A swath of the cavern ceiling suddenly collapsed 1535 | -10/Subcaves | Core integrity fell below 50% 1654 | -10/Subcaves | Disturbed a concealed Subdweller 1768 | -10/Subcaves | Shifting Twisted Machinery released Flamer 1772 | -10/Subcaves | Shifting Twisted Machinery released Shrapnel Trap 2398 | -10/Subcaves | Core integrity fell below 20% 2603 | -10/Subcaves | Shifting Twisted Machinery released Sub. Shrapnel Launcher 2617 | -10/Subcaves | Visited Clippyterm 2625 | -10/Subcaves | Learned Factory stockpile data 2625 | -10/Subcaves | Learned Research security intel 2706 | -10/Subcaves | Shifting Twisted Machinery released Mak. Light Armor Plating 3162 | -10/Subcaves | Identified exit to Recycling 3191 | -10/Subcaves | Visited 4L-MR0's lab 3213 | -10/Subcaves | Found Flightbrick 3642 | -10/Subcaves | Discovered new exit (range 15) 3653 | -10/Subcaves | Destroyed by Autobeam Turret with Autobeam Last Messages --------------- Rainbow Chip VL-GR5's Exoskeleton "Deathgrip" Powered Cannon 03203_ 4L-MR0 mumbles to no one in particular: "Damn Subs sneaking around stealing my stuff." 03205_ Testing Chamber breached. 03213_ Acquired Flightbrick. 03224_ 4L-MR0 mumbles: "I'm surprised some of them are even willing to come in here given their fear of my usual visitors." 03495_ Dropped Hcp. Matter Pod. 03496_ Extracted 200 matter. 03496_ Acquired Hcp. Matter Pod. 03527_ Acquired 6 matter. 03554_ Acquired 15 matter. 03557_ Acquired 8 matter. 03589_ Acquired 15 matter. 03597_ Acquired 5 matter. 03642_ EXIT=FOUND 03650_ Acquired 15 matter. Map ----- +----------------------------------------------------+ | ##???????????????????????????? | | ## ### # #? #????????????????????????????? | | # ###??????????##????????????????????#####???? | | ### #?????????????????????????##########" "##??? | | ### #?????????????????????????# ""##""""#??? | | #% ####???????????????????????### #"""""#??? | | &= #??????????????????????#"""X" +" """#??? | | &= ##??????????????????????#"""""""# """"#??? | | # ## % #?????????????????????########## " #??? | | #### %% " ??????????????????????????##" ""#??? | | ???? ????????????????????######" " #??? | | ??? ## ?????????????????????# # " ##??? | | ##?? % ##?? ?????????????????????## #???? | | #??? #???????????????????????????#" ## ##???? | | ???? ?????????????????????????###" "#######??# | | ???? ??????????????????????###### < ### #### | | ????% ??????????????????????# # | | ????????????????????????????# ##### | | ????????????????????????????### ## #??# | | ?????????????????????????????## ##?# ##?## | | ???????????????????????????### #??## #??# ## | | ?????????????????????????### ##### #??##""### | | ??????????? #??####### ## #???#""#?? | | ???????????"t # ## ## #???#"" ?? | | ?????????> # #### #### #???#"" "? | | ???????????"t @##?# #?##""" ##??# "" | | ??????????? % #### #?## ###""" " ##?###"" | | ???????????????????# # ### ### """"" ##???# ? | | ???????????????????# #### ### """" ##????? | | ?????????????????? ## ##?# """" ##???? | | ???????????????? O #?## ##?## """ "" "###?? | | ??????????????# #??## ##?#########" " #?? | | ????????????? % < ?# # #?????????##" #?? | | ????????????? #??????#####""" ##? | | ?????????????## # ## #?????## ### " "#? | | ????????????????###### ##### #?????# #?##" "#? | | ???????????????????## ???## #????## ##?#" ##? | | ?????????????????### #???# ##???## ### ##? | | ???????????????### #??## ##???## ## ## ## | | ???????????????# #### #????# ### # | | ???????????????# ##???## #### # | | ???????????????#" ##???# ### | | ?????????? & # ### #???## | | ????????? ???## ##?# ##???## | | ?????????????????#######?## ##???# | | ??????????????????????#### ##??# | | ?????????????????????## ##?# | | ????????????????????## ########## ### | | ????????????????????# ## ######### #?# | | ???????????????????# ### ## ##? | +----------------------------------------------------+ Best States ------------- Heat Dissipation 25 Energy Generation 14 Energy Capacity 160 Matter Stores 300 Matter Capacity 300 Sight Range 16 Terrain Scan Density 10 Armor Coverage 150 Resistance: KI 10 Resistance: TH 10 Evasion (%) 40 Recoil Reduction 2 Item Schematics ----------------- None Robot Schematics ------------------ None Fabricated ------------ Nothing Repaired ---------- Nothing Studied --------- None Alien Tech Used ----------------- None Achievements -------------- None Challenges ------------ None Game ------ Seed CatalystTrapShifter Manual? 0 Play Time 00:18:18 Cumulative 146.3 hours Start 2025.12.03 @ 01:38:43 End 2025.12.03 @ 01:55:17 Sessions 1 Manual Loads 0 Difficulty Rogue Special Mode None Game No. 81 Rogue 81 Adventurer 0 Explorer 0 Win Type - Total 1 Types 1/0/0/0/0/0/0/0/0/0 Lore% 66 Gallery% 61 Achievement% 49 Wizard Run 0 Options --------- Layout 1 ASCII 0 Keyboard 0 Movement Mouse Keybinds 0 Fullscreen 2 Font 32/SmallcapsGlow Map View 50x35 Zoom Use 0% Tactical HUD 1 Map Filters NONE Filters NONE Steam 1 RUN: 7dd83b2e-0c81-421f-8cd0-72aa635daa65